bitfinex/quotes_BTCUSD_20230115
["timestamp","ask_amount","ask_price","bid_price","bid_amount"]
[1673807798510,0.00035,20827.0,20826.0,0.24006]
[1673807798755,0.00735,20827.0,20826.0,0.24706]
[1673807799500,0.00035,20827.0,20826.0,1.47806]
[1673807799753,0.00035,20827.0,20826.0,1.52506]
[1673807800005,0.00035,20827.0,20826.0,1.47806]
[1673807800261,0.00135,20827.0,20826.0,1.56406]
[1673807800560,0.00035,20827.0,20826.0,1.77806]
[1673807800802,0.00035,20827.0,20826.0,2.258229]
[1673807801313,0.00035,20827.0,20826.0,2.65622846]
[1673807803643,0.00135,20827.0,20826.0,2.344229]
[1673807804152,0.00135,20827.0,20826.0,2.344169]
[1673807804393,0.00035,20827.0,20826.0,2.258169]
[1673807804640,0.00135,20827.0,20826.0,2.344169]
[1673807805155,0.00235,20827.0,20826.0,2.430169]
[1673807806148,0.00035,20827.0,20826.0,2.258169]
[1673807806652,0.00035,20827.0,20826.0,3.45297662]
[1673807806906,9.046e-05,20827.0,20826.0,3.50967946]
[1673807807177,0.00109046,20827.0,20826.0,3.59567946]
[1673807807413,0.00109046,20827.0,20826.0,3.50967946]
[1673807807666,0.00209046,20827.0,20826.0,3.59567946]
[1673807807914,9.046e-05,20827.0,20826.0,3.15169363]
[1673807808170,0.00055062,20829.0,20827.0,0.2]
[1673807808430,0.00055062,20829.0,20828.0,1.98183854]
[1673807808671,0.00055062,20829.0,20828.0,2.73492042]
[1673807809417,0.00055062,20829.0,20828.0,2.73490706]
[1673807809663,0.00055062,20829.0,20828.0,2.36882518]
[1673807809934,0.00055062,20829.0,20828.0,1.19070372]
[1673807810180,0.19127657,20829.0,20828.0,0.087]
[1673807810437,0.00055062,20829.0,20828.0,0.087]
[1673807811437,0.12678599,20831.0,20828.0,0.087]
[1673807812172,0.12678599,20831.0,20828.0,0.08706]
[1673807812416,0.12678599,20831.0,20828.0,6e-05]
[1673807812663,0.12678599,20831.0,20828.0,0.38706]
[1673807813409,0.12678599,20831.0,20828.0,0.08706]
[1673807814159,0.12678599,20831.0,20828.0,6e-05]
[1673807814408,0.60683899,20831.0,20828.0,0.08706]
[1673807814900,1.08404068,20831.0,20828.0,0.08706]
[1673807815151,0.20639,20829.0,20828.0,0.08706]
[1673807815403,0.0085,20829.0,20828.0,6e-05]
[1673807815649,0.0085,20829.0,20828.0,0.08706]
[1673807815902,0.0085,20830.0,20828.0,0.08706]
[1673807816144,0.0085,20830.0,20828.0,6e-05]
[1673807816376,0.321207,20829.0,20828.0,6e-05]
[1673807816636,0.329707,20829.0,20828.0,0.04806]
[1673807816882,1.067806,20829.0,20828.0,6e-05]
[1673807817128,1.65395395,20829.0,20828.0,6e-05]
[1673807817383,0.20639,20828.0,20827.0,6e-05]
[1673807817626,1.024112,20828.0,20827.0,6e-05]
[1673807817875,0.824112,20828.0,20827.0,6e-05]
[1673807818884,0.824112,20828.0,20827.0,0.04806]
[1673807820176,0.824112,20828.0,20827.0,0.0485]
[1673807821410,0.617722,20828.0,20827.0,0.0485]
[1673807822173,0.1376,20828.0,20827.0,0.0485]
[1673807822430,0.0085,20828.0,20827.0,0.0485]
[1673807822684,0.0085,20829.0,20827.0,0.0485]
[1673807822930,0.61910079,20833.0,20827.0,0.3485]
[1673807823186,0.13908579,20833.0,20828.0,0.9452]
[1673807823432,0.13908579,20833.0,20829.0,0.3]
[1673807823679,0.01098579,20833.0,20829.0,0.3]
[1673807823948,0.01098579,20833.0,20829.0,0.780099]
[1673807824197,0.01098579,20833.0,20828.0,1.42532]
[1673807824445,0.20171174,20833.0,20828.0,1.42532]
[1673807825197,0.68772274,20833.0,20829.0,0.006]
[1673807825447,0.19072595,20832.0,20829.0,0.006]
[1673807825713,0.1291,20830.0,20829.0,0.006]
[1673807825951,0.321207,20829.0,20828.0,0.9452]
[1673807826196,0.31922595,20829.0,20828.0,1.0322]
[1673807826456,0.617099,20829.0,20828.0,0.9452]
[1673807826704,0.938306,20829.0,20828.0,0.9452]
[1673807826952,0.617099,20829.0,20828.0,0.9452]
[1673807827447,0.137,20829.0,20828.0,0.9452]
[1673807827693,0.143,20829.0,20828.0,0.9452]
[1673807828182,0.143,20829.0,20827.0,0.00044]
[1673807828430,0.0085,20828.0,20827.0,0.00044]
[1673807829167,0.0085,20828.0,20827.0,0.04844]
[1673807829427,0.0085,20828.0,20827.0,0.00044]
[1673807829690,0.0085,20828.0,20827.0,0.04844]
[1673807829932,0.609179,20830.0,20827.0,0.04844]
[1673807829933,0.0085,20829.0,20827.0,0.04844]
[1673807830962,0.27002018,20832.0,20827.0,0.00044]
[1673807831200,0.01098579,20833.0,20827.0,1.22657946]
[1673807831730,0.20171174,20833.0,20827.0,1.22657946]
[1673807832033,0.20171174,20833.0,20828.0,0.39799946]
[1673807832277,0.01098579,20833.0,20829.0,1.88372972]
[1673807832496,0.01098579,20833.0,20830.0,1.36949946]
[1673807832764,0.0109084,20833.0,20831.0,1.65810546]
[1673807834264,0.0109084,20833.0,20831.0,1.260106]
[1673807834503,0.0109084,20833.0,20831.0,1.266106]
[1673807835212,0.0109084,20833.0,20831.0,0.966106]
[1673807836050,0.0109084,20833.0,20831.0,0.006]
[1673807836289,0.1394084,20833.0,20831.0,0.006]
[1673807837284,0.0109084,20833.0,20831.0,0.006]
[1673807838307,0.0109084,20833.0,20831.0,0.306]
[1673807839300,0.0109084,20833.0,20831.0,0.786047]
[1673807839542,0.0109084,20833.0,20831.0,0.786107]
[1673807840546,0.0109084,20833.0,20831.0,1.18404646]
[1673807840796,0.0109084,20833.0,20832.0,0.39799946]
[1673807841085,0.0124756,20837.0,20832.0,0.39799946]
[1673807841086,0.0124756,20837.0,20832.0,2.05831918]
[1673807841335,0.0124756,20837.0,20833.0,0.69799946]
[1673807841598,0.0124756,20837.0,20835.0,1.439883]
[1673807841856,0.0124756,20837.0,20836.0,0.69799946]
[1673807842091,0.0024756,20837.0,20836.0,1.17793746]
[1673807842339,0.00221302,20840.0,20838.0,0.479892]
[1673807842591,0.00221302,20840.0,20839.0,0.3]
[1673807842840,0.01213209,20842.0,20839.0,1.1897]
[1673807843094,0.01213209,20842.0,20840.0,0.39799946]
[1673807843344,0.01213209,20842.0,20841.0,1.259646]
[1673807843873,0.01213209,20842.0,20840.0,0.47984]
[1673807844141,0.33195804,20842.0,20840.0,0.092]
[1673807844407,0.321207,20841.0,20840.0,0.092]
[1673807844654,0.450307,20841.0,20836.0,0.8964]
[1673807844959,0.45715914,20840.0,20836.0,0.8964]
[1673807845213,0.30004319,20840.0,20836.0,0.8964]
[1673807845457,0.1291,20839.0,20836.0,0.8964]
[1673807845712,0.30024319,20839.0,20836.0,0.8964]
[1673807845998,0.1291,20839.0,20836.0,0.8964]
[1673807846249,0.1291,20839.0,20834.0,0.8964]
[1673807846250,0.61360169,20838.0,20834.0,0.8964]
[1673807846492,0.30754319,20838.0,20836.0,0.092]
[1673807846744,0.1364,20838.0,20836.0,0.092]
[1673807847334,0.1279,20838.0,20836.0,0.19072595]
[1673807847515,0.1289,20840.0,20835.0,0.979952]
[1673807847771,0.1289,20840.0,20835.0,0.97067795]
[1673807847772,0.30004319,20840.0,20835.0,0.97067795]
[1673807848027,0.30004319,20840.0,20835.0,0.67067795]
[1673807848288,0.49232719,20839.0,20834.0,1.376362]
[1673807848625,0.1291,20838.0,20834.0,1.376362]
[1673807848822,0.30024319,20838.0,20835.0,0.093]
[1673807849026,0.1291,20838.0,20834.0,2.056325]
[1673807849285,0.30024319,20838.0,20835.0,0.572956]
[1673807849538,0.1291,20838.0,20835.0,0.572956]
[1673807849805,0.1291,20838.0,20835.0,0.479956]
[1673807850519,0.1291,20838.0,20835.0,0.523956]
[1673807851032,0.0085,20839.0,20836.0,0.3]
[1673807851283,0.14063209,20842.0,20837.0,0.537838]
[1673807851558,0.0085,20841.0,20838.0,0.19072595]
[1673807852080,0.0085,20841.0,20838.0,0.8747]
[1673807853078,0.0085,20841.0,20838.0,0.9677]
[1673807853343,0.0085,20841.0,20838.0,0.8747]
[1673807854623,0.449284,20840.0,20838.0,0.8747]
[1673807854877,0.157143,20839.0,20838.0,0.8747]
[1673807855126,0.329684,20839.0,20838.0,0.8747]
[1673807855381,0.329684,20839.0,20838.0,1.1147]
[1673807855895,0.0085,20839.0,20838.0,1.1147]
[1673807856104,0.1281,20840.0,20838.0,1.1147]
[1673807856899,0.1281,20840.0,20838.0,0.24]
[1673807856900,0.457784,20839.0,20838.0,0.24]
[1673807857160,0.937653,20839.0,20838.0,0.24]
[1673807857944,1.54275469,20839.0,20838.0,0.24]
[1673807858197,0.11448538,20837.0,20832.0,0.9411]
[1673807858450,0.1289,20835.0,20832.0,0.9411]
[1673807858702,0.17114319,20834.0,20832.0,0.9411]
[1673807859213,0.1289,20835.0,20832.0,0.9411]
[1673807861228,0.0085,20836.0,20834.0,0.2]
[1673807861470,0.0085,20836.0,20834.0,0.38072595]
[1673807861724,0.11448538,20837.0,20835.0,0.057944]
[1673807861972,0.11448538,20837.0,20833.0,0.779996]
[1673807862221,0.11448538,20837.0,20833.0,0.97072195]
[1673807862470,0.11448538,20837.0,20834.0,0.293]
[1673807862731,0.11448538,20837.0,20834.0,0.2]
[1673807863005,0.11448538,20837.0,20835.0,0.044]
[1673807864039,0.11448538,20837.0,20834.0,0.3]
[1673807864279,0.11448538,20837.0,20833.0,1.05199]
[1673807864529,0.28562857,20837.0,20835.0,0.044]
[1673807864772,0.11448538,20837.0,20833.0,0.95999]
[1673807865049,0.28562857,20837.0,20834.0,0.093]
[1673807865298,0.11448538,20837.0,20834.0,0.093]
[1673807865546,0.11448538,20837.0,20833.0,0.479985]
[1673807865795,0.11448538,20837.0,20835.0,0.044]
[1673807866080,0.11448538,20837.0,20836.0,0.057938]
[1673807866336,0.11448538,20837.0,20836.0,0.837876]
[1673807867084,0.11448538,20837.0,20836.0,1.779076]
[1673807867331,0.11448538,20837.0,20836.0,1.872076]
[1673807868117,0.11448538,20837.0,20836.0,2.37592366]
[1673807868363,0.11448538,20837.0,20836.0,2.46792366]
[1673807869860,0.11448538,20837.0,20836.0,2.37592366]
[1673807870156,0.11448538,20837.0,20836.0,2.46792366]
[1673807870422,0.11448538,20837.0,20836.0,2.74048338]
[1673807870655,0.01213209,20842.0,20836.0,3.21562748]
[1673807870906,0.01213209,20842.0,20838.0,0.14338161]
[1673807871157,0.01213209,20842.0,20839.0,0.58757361]
[1673807871480,0.01213209,20842.0,20841.0,0.479823]
[1673807871671,0.01213209,20842.0,20841.0,1.734033]
[1673807872456,0.01213209,20842.0,20841.0,0.8963]
[1673807872746,0.01213209,20842.0,20841.0,0.9883]
[1673807873232,0.01213209,20842.0,20841.0,1.1963]
[1673807873484,0.01213209,20842.0,20841.0,1.347209]
[1673807873734,0.01213209,20842.0,20841.0,1.827032]
[1673807874272,0.01213209,20842.0,20841.0,0.9893]
[1673807875274,0.01213209,20842.0,20841.0,0.093]
[1673807875536,0.33331609,20842.0,20841.0,0.093]
[1673807876078,0.33331609,20842.0,20840.0,0.1]
[1673807876366,0.01913209,20842.0,20841.0,6e-05]
[1673807876638,0.01913209,20842.0,20841.0,0.09571]
[1673807877140,0.01213209,20842.0,20841.0,0.09571]
[1673807877643,0.01213209,20842.0,20841.0,0.633442]
[1673807877922,0.01213209,20842.0,20841.0,0.933442]
[1673807878392,0.01213209,20842.0,20841.0,0.981442]
[1673807878656,0.01213209,20842.0,20841.0,0.933442]
[1673807878892,0.01913209,20842.0,20841.0,0.933442]
[1673807879253,0.01213209,20842.0,20841.0,0.933442]
[1673807879431,0.01213209,20842.0,20841.0,0.981442]
[1673807879686,0.01213209,20842.0,20841.0,0.933442]
[1673807879936,0.01313209,20842.0,20841.0,1.148142]
[1673807880971,0.01413209,20842.0,20841.0,1.234142]
[1673807881229,0.01213209,20842.0,20841.0,1.062142]
[1673807881474,0.01313209,20842.0,20841.0,1.147142]
[1673807882225,0.01313209,20842.0,20841.0,1.018382]
[1673807885058,0.01303726,20842.0,20841.0,1.018382]
[1673807885801,0.01303726,20842.0,20841.0,0.718382]
[1673807885845,0.01303726,20842.0,20841.0,0.085]
[1673807886574,0.33422126,20842.0,20841.0,0.085]
[1673807886829,0.01303726,20842.0,20841.0,0.085]
[1673807887333,0.33422126,20842.0,20840.0,0.16297433]
[1673807887589,0.157143,20841.0,20840.0,0.16297433]
[1673807887842,0.01303726,20842.0,20840.0,0.16297433]
[1673807888109,0.02603726,20842.0,20841.0,0.006]
[1673807888355,0.01203726,20842.0,20840.0,0.16297433]
[1673807888617,0.335184,20841.0,20840.0,0.16297433]
[1673807888902,0.01203726,20842.0,20840.0,0.16297433]
[1673807889159,0.02503726,20842.0,20841.0,0.006]
[1673807889438,0.01203726,20842.0,20840.0,0.16297433]
[1673807890474,0.001,20841.0,20840.0,0.16287779]
[1673807891013,0.01203726,20842.0,20840.0,0.16287779]
[1673807891248,0.01203726,20842.0,20840.0,0.21587779]
[1673807891500,0.01203726,20842.0,20840.0,0.16287779]
[1673807891763,0.335184,20841.0,20840.0,0.16287779]
[1673807892082,0.321184,20841.0,20840.0,0.16287779]
[1673807892281,0.321184,20841.0,20840.0,0.16881779]
[1673807892519,0.937607,20841.0,20840.0,0.16881779]
[1673807893280,1.54310869,20841.0,20840.0,0.16281779]
[1673807893550,1.90939255,20841.0,20840.0,0.16881779]
[1673807893791,0.06275339,20839.0,20833.0,1.372294]
[1673807894057,0.32828619,20838.0,20833.0,0.8923]
[1673807894320,0.67173839,20839.0,20833.0,0.8923]
[1673807894321,0.17114319,20837.0,20833.0,0.8923]
[1673807894621,0.17114319,20836.0,20833.0,0.8923]
[1673807895401,0.679894,20838.0,20833.0,0.8923]
[1673807895652,0.15762404,20837.0,20833.0,1.08302595]
[1673807895915,0.17114319,20837.0,20833.0,0.8923]
[1673807896415,0.18014319,20837.0,20833.0,0.8923]
[1673807896671,0.608694,20838.0,20833.0,1.08302595]
[1673807896672,1.088627,20838.0,20833.0,1.08302595]
[1673807896936,0.01,20837.0,20833.0,1.56302695]
[1673807897239,0.17114319,20837.0,20833.0,1.372301]
[1673807897461,0.17114319,20837.0,20832.0,0.48755199]
[1673807897697,0.449084,20836.0,20832.0,0.48755199]
[1673807897948,0.32828619,20835.0,20832.0,0.00753399]
[1673807898212,0.005,20837.0,20832.0,0.67827494]
[1673807898522,0.005,20837.0,20833.0,0.24867895]
[1673807898739,0.005,20837.0,20834.0,0.057947]
[1673807899004,0.68480636,20839.0,20833.0,0.959989]
[1673807899261,0.0085,20838.0,20834.0,0.19072595]
[1673807899774,0.005,20837.0,20834.0,0.19072595]
[1673807900026,0.0085,20838.0,20833.0,0.480003]
[1673807900027,0.688395,20838.0,20833.0,0.480003]
[1673807900279,0.65953819,20838.0,20833.0,0.19072595]
[1673807900541,0.98662884,20838.0,20833.0,0.19072595]
[1673807900818,0.65953819,20838.0,20833.0,0.19072595]
[1673807901104,0.17964319,20838.0,20833.0,0.67072695]
[1673807901878,0.18464319,20838.0,20833.0,0.67072695]
[1673807903498,0.005,20838.0,20834.0,0.49072595]
[1673807903703,0.005,20838.0,20835.0,1.017856]
[1673807903932,0.005,20838.0,20836.0,0.8846]
[1673807904146,0.005,20838.0,20837.0,0.057934]
[1673807904577,0.06275339,20839.0,20837.0,0.057934]
[1673807904801,0.004,20838.0,20836.0,1.479533]
[1673807905180,0.06275339,20839.0,20837.0,0.05793]
[1673807905444,0.004,20838.0,20837.0,0.52391]
[1673807905708,0.06275339,20839.0,20837.0,0.53784]
[1673807905961,0.004,20838.0,20837.0,0.47991]
[1673807906208,0.004,20838.0,20837.0,0.83784]
[1673807906465,0.004,20838.0,20837.0,0.88184]
[1673807908253,0.004,20838.0,20837.0,1.11144]
[1673807908510,0.004,20838.0,20837.0,1.42961876]
[1673807908769,0.004,20838.0,20837.0,1.51441876]
[1673807909056,0.004,20838.0,20837.0,1.19624]
[1673807910108,0.004,20838.0,20837.0,1.51406998]
[1673807910326,0.004,20838.0,20837.0,2.11204597]
[1673807910584,0.06275339,20839.0,20838.0,0.2]
[1673807910834,0.06275339,20839.0,20838.0,2.36505824]
[1673807911090,0.06275339,20839.0,20838.0,2.00800263]
[1673807911344,0.06275339,20839.0,20838.0,1.43211]
[1673807911571,0.06275339,20839.0,20838.0,1.31771]
[1673807911854,0.06475339,20839.0,20838.0,1.38671]
[1673807912363,0.06675339,20839.0,20838.0,1.45571]
[1673807912619,0.06275339,20839.0,20838.0,1.43231]
[1673807912881,0.06475339,20839.0,20838.0,1.50231]
[1673807913414,0.06475339,20839.0,20838.0,1.08771]
[1673807913675,0.23389658,20839.0,20836.0,1.50784407]
[1673807913944,0.23389658,20839.0,20838.0,0.07]
[1673807913945,0.06475339,20839.0,20838.0,0.07]
[1673807914208,0.06275339,20839.0,20836.0,1.364533]
[1673807914453,0.06475339,20839.0,20838.0,0.07]
[1673807914703,0.06275339,20839.0,20838.0,0.651918]
[1673807914954,0.06275339,20839.0,20838.0,0.851918]
[1673807914955,0.06475339,20839.0,20838.0,0.851918]
[1673807915200,0.06475339,20839.0,20838.0,0.651918]
[1673807915453,0.06475339,20839.0,20838.0,0.951918]
[1673807915724,0.06275339,20839.0,20838.0,0.951918]
[1673807916513,0.06475339,20839.0,20838.0,1.021918]
[1673807917524,0.06475339,20839.0,20838.0,0.721918]
[1673807917880,0.06475339,20839.0,20838.0,0.607818]
[1673807918831,0.06475339,20839.0,20838.0,0.907818]
[1673807919913,0.06475339,20839.0,20838.0,1.107818]
[1673807920170,0.06475339,20839.0,20838.0,1.022318]
[1673807920708,0.06475339,20839.0,20838.0,1.36563907]
[1673807921209,0.06475339,20839.0,20838.0,1.16563907]
[1673807921999,0.06475339,20839.0,20838.0,1.36563907]
[1673807922482,0.06475339,20839.0,20838.0,1.16563907]
[1673807922740,0.06475339,20839.0,20838.0,1.022318]
[1673807923507,0.06475339,20839.0,20838.0,1.16563907]
[1673807924011,0.06475339,20839.0,20838.0,1.022318]
[1673807924562,0.06475339,20839.0,20838.0,1.16563907]
[1673807924802,0.06475339,20839.0,20838.0,1.84369127]
[1673807925308,0.06475339,20839.0,20838.0,1.843724]
[1673807925817,0.06475339,20839.0,20838.0,2.16310557]
[1673807926065,0.01203726,20842.0,20840.0,0.03524661]
[1673807926315,0.01203726,20842.0,20841.0,1.074746]
[1673807926573,0.01203726,20842.0,20841.0,2.012756]
[1673807926819,0.01203726,20842.0,20841.0,2.312756]
[1673807927874,0.01203726,20842.0,20841.0,0.8801]
[1673807928414,0.01203726,20842.0,20840.0,0.03524661]
[1673807928905,0.321184,20841.0,20840.0,0.03524661]
[1673807929168,0.435584,20841.0,20840.0,0.03524661]
[1673807929434,0.435584,20841.0,20840.0,0.10724661]
[1673807930207,0.1144,20841.0,20840.0,0.03524661]
[1673807930460,0.1164,20841.0,20840.0,0.10724661]
[1673807931254,0.435584,20841.0,20840.0,0.03524661]
[1673807931479,0.1354,20841.0,20840.0,0.04124661]
[1673807931693,0.456584,20841.0,20840.0,0.04124661]
[1673807931962,0.1354,20841.0,20840.0,0.04124661]
[1673807932487,1.039007,20841.0,20840.0,0.03524661]
[1673807932755,0.738823,20841.0,20840.0,0.04124661]
[1673807933027,1.039007,20841.0,20840.0,0.03524661]
[1673807933365,1.060007,20841.0,20840.0,0.03524661]
[1673807933610,0.945607,20841.0,20840.0,0.04124661]
[1673807933891,0.924607,20841.0,20840.0,0.03524661]
[1673807934151,0.945607,20841.0,20840.0,0.04124661]
[1673807935435,0.924607,20841.0,20840.0,0.03524661]
[1673807935694,0.945607,20841.0,20840.0,0.04124661]
[1673807935975,0.321184,20841.0,20840.0,0.22597256]
[1673807936204,0.021,20841.0,20840.0,0.04124661]
[1673807936468,0.12643726,20842.0,20840.0,0.03524661]
[1673807936719,0.021,20841.0,20840.0,0.04124661]
[1673807937997,0.1361,20841.0,20840.0,0.04124661]
[1673807938265,0.436284,20841.0,20840.0,0.03524661]
[1673807938555,0.916107,20841.0,20840.0,0.03524661]
[1673807938794,0.457284,20841.0,20840.0,0.04124661]
[1673807939052,0.021,20841.0,20840.0,0.04124661]
[1673807939848,0.021,20841.0,20840.0,0.57900661]
[1673807940094,0.021,20841.0,20840.0,0.87900661]
[1673807940580,0.021,20841.0,20840.0,0.57900661]
[1673807940842,0.021,20841.0,20840.0,0.09916061]
[1673807941119,0.1351,20841.0,20840.0,0.04124661]
[1673807941897,0.456284,20841.0,20840.0,0.04124661]
[1673807942433,0.936107,20841.0,20840.0,0.04124661]
[1673807942944,0.614923,20841.0,20840.0,0.04124661]
[1673807943190,0.936107,20841.0,20840.0,0.04124661]
[1673807943450,1.20126997,20841.0,20840.0,0.04124661]
[1673807943704,1.059107,20841.0,20840.0,0.04124661]
[1673807944213,0.579284,20841.0,20840.0,0.04124661]
[1673807945500,0.72144697,20841.0,20840.0,0.04124661]
[1673807945759,1.41243365,20841.0,20840.0,0.04124661]
[1673807946016,1.20126997,20841.0,20840.0,0.04124661]
[1673807946269,1.41243365,20841.0,20840.0,0.04124661]
[1673807946522,1.059107,20841.0,20840.0,0.04124661]
[1673807946776,0.0295,20841.0,20840.0,0.23197256]
[1673807947025,0.021,20841.0,20840.0,0.04124661]
[1673807948562,0.021,20841.0,20840.0,1.37269261]
[1673807948882,0.021,20841.0,20840.0,1.43060661]
[1673807949072,0.021,20841.0,20840.0,1.37269261]
[1673807949924,0.01203726,20842.0,20840.0,1.36669261]
[1673807950208,0.015,20841.0,20840.0,1.36669261]
[1673807950464,0.01203726,20842.0,20841.0,0.19435263]
[1673807950725,0.01203726,20842.0,20841.0,0.67417563]
[1673807951238,0.01303726,20842.0,20841.0,0.67417563]
[1673807951522,0.01203726,20842.0,20841.0,0.67417563]
[1673807951798,0.02703726,20842.0,20841.0,0.67417563]
[1673807952051,0.02703726,20842.0,20841.0,8.263e-05]
[1673807952841,0.02703726,20842.0,20841.0,0.09573263]
[1673807953648,0.02703726,20842.0,20841.0,8.263e-05]
[1673807954692,0.02703726,20842.0,20841.0,0.09573263]
[1673807954952,0.02703726,20842.0,20841.0,0.15364163]
[1673807955203,0.02703726,20842.0,20841.0,0.09573263]
[1673807955476,0.02695597,20842.0,20841.0,0.09573263]
[1673807955757,0.02695597,20842.0,20841.0,0.57555563]
[1673807956011,0.02695597,20842.0,20841.0,0.09573263]
[1673807956224,0.02695597,20842.0,20841.0,8.263e-05]
[1673807957751,0.02695597,20842.0,20841.0,0.08687263]
[1673807958780,0.02695597,20842.0,20841.0,8.263e-05]
[1673807959362,0.01195597,20842.0,20841.0,8.263e-05]
[1673807959590,0.01295597,20842.0,20841.0,0.05608263]
[1673807959838,1.7303275,20842.0,20841.0,8.263e-05]
[1673807960092,1.8947464,20842.0,20841.0,8.263e-05]
[1673807960606,2.0372897,20842.0,20841.0,8.263e-05]
[1673807960880,1.8947464,20842.0,20841.0,8.263e-05]
[1673807961433,2.02329011,20842.0,20841.0,8.263e-05]
[1673807961685,2.05529011,20842.0,20841.0,0.00508263]
[1673807962193,2.05526417,20842.0,20841.0,0.00508263]
[1673807962444,1.9127464,20842.0,20841.0,0.00508263]
[1673807962969,2.05525942,20842.0,20841.0,0.00508263]
[1673807963513,2.05525942,20842.0,20841.0,8.263e-05]
[1673807963514,1.90895942,20842.0,20841.0,8.263e-05]
[1673807963735,1.94095942,20842.0,20841.0,0.00508263]
[1673807963986,1.72979574,20842.0,20841.0,0.00508263]
[1673807964235,1.94095942,20842.0,20841.0,0.00508263]
[1673807967306,2.0800519,20842.0,20841.0,0.00508263]
[1673807968050,2.82868247,20842.0,20841.0,0.00508263]
[1673807968305,3.25837182,20842.0,20841.0,0.00508263]
[1673807968594,2.82868247,20842.0,20841.0,0.00508263]
[1673807968826,2.0826963,20842.0,20841.0,0.00508263]
[1673807969645,1.8010908,20842.0,20841.0,0.00508263]
[1673807970105,1.94362649,20842.0,20841.0,0.00508263]
[1673807970630,1.8010908,20842.0,20841.0,0.00508263]
[1673807971189,1.94361693,20842.0,20841.0,0.00508263]
[1673807972290,1.8010908,20842.0,20841.0,0.00508263]
[1673807973332,1.9435907,20842.0,20841.0,0.00508263]
[1673807973613,1.8010908,20842.0,20841.0,0.00508263]
[1673807974168,2.0826963,20842.0,20841.0,0.00508263]
[1673807974431,2.08262597,20842.0,20841.0,0.00508263]
[1673807974686,2.82869311,20842.0,20841.0,0.00508263]
[1673807974973,3.25934654,20842.0,20841.0,0.00508263]
[1673807975247,4.37235567,20842.0,20841.0,0.00508263]
[1673807975509,0.00682107,20840.0,20836.0,0.8713]
[1673807975762,0.25758457,20837.0,20836.0,0.8713]
[1673807976025,1.56725719,20837.0,20832.0,0.21838399]
[1673807976315,0.1141,20835.0,20833.0,0.791]
[1673807976584,0.76520819,20835.0,20833.0,0.791]
[1673807976843,0.60080169,20834.0,20832.0,0.00753399]
[1673807977089,0.436284,20833.0,20832.0,0.00753399]
[1673807977338,0.444784,20833.0,20832.0,0.00753399]
[1673807977858,0.444784,20833.0,20832.0,0.00853399]
[1673807977859,0.92198569,20833.0,20832.0,0.00853399]
[1673807978099,1.17927026,20833.0,20832.0,0.00853399]
[1673807978355,1.65927726,20833.0,20832.0,0.00853399]
[1673807978866,1.51679269,20833.0,20832.0,0.00753399]
[1673807979130,1.56979269,20833.0,20832.0,0.00753399]
[1673807979370,1.97847562,20833.0,20832.0,0.00753399]
[1673807979619,1.92547562,20833.0,20832.0,0.00753399]
[1673807979867,2.01647562,20833.0,20832.0,0.00753399]
[1673807981629,1.60779269,20833.0,20832.0,0.19825994]
[1673807981887,0.526984,20833.0,20832.0,0.00753399]
[1673807982406,0.412184,20833.0,20832.0,0.00753399]
[1673807982911,0.091,20833.0,20832.0,0.00753399]
[1673807983161,0.0995,20833.0,20832.0,0.00753399]
[1673807983650,0.091,20833.0,20832.0,0.09432399]
[1673807983902,0.091,20833.0,20832.0,0.57435399]
[1673807984148,0.091,20833.0,20832.0,0.93231399]
[1673807984402,0.091,20833.0,20832.0,0.63231399]
[1673807984895,0.091,20833.0,20832.0,0.93231399]
[1673807985141,0.1151,20837.0,20832.0,0.93231399]
[1673807985394,0.1151,20837.0,20833.0,0.49072595]
[1673807985640,0.1151,20837.0,20833.0,1.45072095]
[1673807985883,0.1151,20838.0,20834.0,0.2]
[1673807986135,0.1151,20838.0,20834.0,1.46550795]
[1673807986382,0.004,20837.0,20834.0,1.46550795]
[1673807986665,0.1151,20838.0,20834.0,1.274782]
[1673807986915,0.1151,20838.0,20834.0,1.46650795]
[1673807987164,0.34424319,20838.0,20834.0,0.7958]
[1673807987421,0.34424319,20838.0,20834.0,0.7948]
[1673807987422,0.28624319,20838.0,20834.0,0.7948]
[1673807987917,0.1151,20838.0,20834.0,0.7948]
[1673807988404,0.594994,20838.0,20834.0,0.7948]
[1673807988994,0.594994,20838.0,20834.0,0.8038]
[1673807988995,0.1141,20837.0,20834.0,0.8038]
[1673807989217,0.1151,20835.0,20834.0,0.8038]
[1673807989458,0.436284,20835.0,20834.0,0.8038]
[1673807989716,0.916245,20835.0,20834.0,0.8038]
[1673807989972,0.916245,20835.0,20834.0,0.7948]
[1673807990264,1.23607212,20835.0,20834.0,0.7948]
[1673807990485,1.047845,20835.0,20834.0,0.8038]
[1673807991274,0.008,20835.0,20834.0,0.8038]
[1673807991534,0.594036,20837.0,20834.0,0.7948]
[1673807991795,0.083,20835.0,20834.0,0.7958]
[1673807992053,0.594036,20837.0,20834.0,0.7948]
[1673807992313,0.009,20835.0,20834.0,0.8028]
[1673807999915,0.009,20835.0,20834.0,0.8026921]
[1673808001525,0.009,20835.0,20834.0,0.8022291]
[1673808002628,0.09853,20835.0,20834.0,0.8022291]
[1673808002874,0.2043686,20835.0,20834.0,0.8022291]
[1673808003125,0.6406526,20835.0,20834.0,0.8022291]
[1673808003417,1.01201569,20835.0,20834.0,0.8022291]
[1673808003683,1.13531569,20835.0,20834.0,0.8022291]
[1673808004980,1.12631569,20835.0,20834.0,0.7942291]
[1673808005219,1.09521569,20835.0,20834.0,0.7952291]
[1673808006043,1.21031569,20835.0,20834.0,0.001]
[1673808006319,1.69027669,20835.0,20834.0,0.001]
[1673808006821,1.83276126,20835.0,20834.0,0.001]
[1673808007074,1.69027669,20835.0,20834.0,0.001]
[1673808007855,2.06740552,20835.0,20834.0,0.001]
[1673808008362,2.20989009,20835.0,20834.0,0.001]
[1673808009386,2.06740552,20835.0,20834.0,0.001]
[1673808009651,2.20989009,20835.0,20834.0,0.001]
[1673808010663,2.42361695,20835.0,20834.0,0.001]
[1673808011693,2.56610153,20835.0,20834.0,0.001]
[1673808011953,2.28113238,20835.0,20834.0,0.001]
[1673808012489,2.56610153,20835.0,20834.0,0.001]
[1673808013257,0.08978927,20833.0,20832.0,0.00753399]